[Event "Polish Youth 1st League 2022"]
[Site "Lublin"]
[Date "2022.06.25"]
[Round "1.9"]
[White "Musial, Igor"]
[Black "Cieslak, Patryk"]
[Result "0-1"]
[ECO "C05"]
[WhiteElo "1699"]
[BlackElo "2019"]
[Annotator "NA RC"]
[PlyCount "58"]
[EventDate "2022.06.24"]
[EventType "team-tourn"]
[EventCountry "POL"]
[SourceTitle "playchess.com"]
[Source "ChessBase"]
[SourceQuality "1"]
[TimeControl "40/5400+30:1800+30"]

1. e4 {[%emt 0:00:01]} e6 {[%emt 0:00:04]} 2. d4 {[%emt 0:00:17]} d5 {[%emt 0:00:05]} 3. Nd2 {[%emt 0:00:07]} Nf6 {[%emt 0:00:16]} 4. e5 {[%emt 0:03:03]} Nfd7 {[%emt 0:00:02]} 5. Ngf3 {[%emt 0:00:34]} c5 {[%emt 0:00:32]} 6. c3 {[%emt 0:03:31]} Nc6 {[%emt 0:01:00]} 7. Be2 {[%emt 0:07:53]} cxd4 {[%emt 0:06:13]} 8. cxd4 {[%emt 0:05:48]} Qb6 {[%emt 0:00:52]} 9. Nb3 {[%emt 0:00:19]} a5 {[%emt 0:02:48]} 10. a4 {[%emt 0:01:49]} Bb4+ {[%emt 0:01:33]} 11. Kf1 {[%emt 0:00:04]} f6 {[%emt 0:03:33]} 12. Be3 {[%emt 0:06:23]} O-O {[%emt 0:05:47]} 13. Qc2 {[%emt 0:04:22]} Be7 {[%emt 0:08:10]} 14. Nc1 {[%emt 0:09:03]} fxe5 {[%emt 0:06:18]} 15. dxe5 {[%emt 0:04:56]} d4 {[%emt 0:01:45]} 16. Bg5 {[%emt 0:00:37]} Rxf3 {[%emt 0:03:37]} 17. Bxf3 {[%emt 0:01:14]} Bxg5 {[%emt 0:00:15]} 18. Be4 {[%emt 0:01:31]} Nf8 {[%emt 0:05:38]} 19. Nd3 {[%emt 0:02:42]} Be7 {[%emt 0:05:48]} 20. Rc1 {[%emt 0:06:57]} Bd7 {[%emt 0:01:45]} 21. g3 {[%emt 0:04:59]} Nb4 {[%emt 0:05:10]} 22. Qb3 {[%emt 0:02:43]} Bc6 {[%emt 0:02:45]} 23. Bxc6 {[%emt 0:00:28]} bxc6 {[%emt 0:00:28]} 24. Kg2 {[%emt 0:00:49]} c5 {[%emt 0:00:57]} 25. Rhd1 {[%emt 0:00:48]} Rb8 {[%emt 0:02:43]} 26. Ne1 {[%emt 0:09:13]} Nd5 {[%emt 0:02:47]} 27. Qd3 {[%emt 0:02:26]} Qxb2 $19 {[%emt 0:05:00]} 28. Rb1 {[%emt 0:02:38]} Ne3+ {[%emt 0:00:18]} 29. Kh3 {[%emt 0:02:10]} Qxf2 {[%emt 0:09:31]} 0-1

[Event "Polish Youth 1st League 2022"]
[Site "Lublin"]
[Date "2022.06.25"]
[Round "1.10"]
[White "Brzezina, Piotr"]
[Black "Rozek, Michal"]
[Result "1/2-1/2"]
[ECO "C67"]
[WhiteElo "1633"]
[BlackElo "1533"]
[Annotator "NA RC"]
[PlyCount "73"]
[EventDate "2022.06.24"]
[EventType "team-tourn"]
[EventCountry "POL"]
[SourceTitle "playchess.com"]
[Source "ChessBase"]
[SourceQuality "1"]
[TimeControl "40/5400+30:1800+30"]

1. e4 {[%emt 0:00:12]} e5 {[%emt 0:00:07]} 2. Nf3 {[%emt 0:00:12]} Nc6 {[%emt 0:00:08]} 3. Bb5 {[%emt 0:00:33]} Nf6 {[%emt 0:00:12]} 4. O-O {[%emt 0:00:34]} Nxe4 {[%emt 0:00:13]} 5. Re1 {[%emt 0:00:55]} Nd6 {[%emt 0:00:14]} 6. Nxe5 {[%emt 0:00:08]} Be7 {[%emt 0:00:15]} 7. Bf1 {[%emt 0:00:29]} Nxe5 {[%emt 0:00:13]} 8. Rxe5 {[%emt 0:00:06]} O-O {[%emt 0:00:16]} 9. d4 {[%emt 0:00:03]} Bf6 {[%emt 0:00:37]} 10. Re1 {[%emt 0:00:46]} Re8 {[%emt 0:00:46]} 11. Bf4 {[%emt 0:01:40]} Rxe1 {[%emt 0:00:54]} 12. Qxe1 {[%emt 0:00:10]} Ne8 {[%emt 0:00:39]} 13. c3 {[%emt 0:01:12]} d5 {[%emt 0:01:04]} 14. Bd3 {[%emt 0:01:51]} g6 {[%emt 0:01:01]} 15. Nd2 {[%emt 0:00:34]} Ng7 {[%emt 0:09:24]} 16. Nf3 {[%emt 0:01:58]} Nh5 {[%emt 0:11:29]} 17. Bh6 {[%emt 0:09:05]} Be6 {[%emt 0:08:39]} 18. Qd2 {[%emt 0:07:34]} Ng7 {[%emt 0:05:04]} 19. Re1 {[%emt 0:01:53]} Nf5 {[%emt 0:07:02]} 20. Bf4 {[%emt 0:01:36]} Nd6 {[%emt 0:03:05]} 21. Ne5 {[%emt 0:10:52]} Bf5 {[%emt 0:30:43]} 22. Bxf5 {[%emt 0:00:56]} Nxf5 {[%emt 0:00:08]} 23. Ng4 {[%emt 0:06:00]} Bg7 {[%emt 0:01:00]} 24. Bg5 {[%emt 0:07:22]} Qd6 {[%emt 0:05:24]} 25. Ne3 {[%emt 0:00:42]} Nxe3 {[%emt 0:08:35]} 26. Qxe3 {[%emt 0:00:17]} Bf6 {[%emt 0:00:51]} 27. Bh6 {[%emt 0:02:36]} Qd7 {[%emt 0:00:57]} 28. h3 {[%emt 0:02:05]} Rc8 {[%emt 0:01:35]} 29. Qf4 {[%emt 0:02:10]} Bg7 {[%emt 0:00:45]} 30. Bg5 {[%emt 0:01:41]} f6 {[%emt 0:01:44]} 31. Bh6 {[%emt 0:01:31]} g5 {[%emt 0:01:08]} 32. Bxg5 {[%emt 0:00:14]} fxg5 {[%emt 0:00:27]} 33. Qxg5 {[%emt 0:00:07]} Kf7 {[%emt 0:01:32]} 34. Qh5+ {[%emt 0:00:44]} Kg8 {[%emt 0:00:20]} 35. Qg5 {[%emt 0:00:03]} Kf7 {[%emt 0:00:39]} 36. Qh5+ {[%emt 0:00:04]} Kg8 {[%emt 0:00:38]} 37. Qg5 1/2-1/2

[Event "Polish Youth 1st League 2022"]
[Site "Lublin"]
[Date "2022.06.25"]
[Round "1.11"]
[White "Mroz, Lena"]
[Black "Hertlein, Irena"]
[Result "0-1"]
[ECO "B44"]
[WhiteElo "1719"]
[BlackElo "1873"]
[Annotator "NA RC"]
[PlyCount "94"]
[EventDate "2022.06.24"]
[EventType "team-tourn"]
[EventCountry "POL"]
[SourceTitle "playchess.com"]
[Source "ChessBase"]
[SourceQuality "1"]
[TimeControl "40/5400+30:1800+30"]

1. e4 {[%emt 0:00:02]} c5 {[%emt 0:00:06]} 2. Nf3 {[%emt 0:00:08]} e6 {[%emt 0:00:06]} 3. d4 {[%emt 0:00:20]} cxd4 {[%emt 0:00:08]} 4. Nxd4 {[%emt 0:00:09]} Nc6 {[%emt 0:00:10]} 5. Nb5 {[%emt 0:00:53]} d6 {[%emt 0:00:10]} 6. c4 {[%emt 0:00:32]} a6 {[%emt 0:02:30]} 7. N5c3 {[%emt 0:01:44]} Qc7 {[%emt 0:02:27]} 8. Be2 {[%emt 0:03:57]} Be7 {[%emt 0:00:42]} 9. Na3 {[%emt 0:01:20]} Nf6 {[%emt 0:00:58]} 10. O-O {[%emt 0:02:07]} b6 {[%emt 0:02:15]} 11. Be3 {[%emt 0:04:20]} Bb7 {[%emt 0:00:58]} 12. f3 {[%emt 0:01:40]} O-O {[%emt 0:03:20]} 13. Qb3 {[%emt 0:03:31]} Nd7 {[%emt 0:01:04]} 14. Rac1 {[%emt 0:01:47]} Nce5 {[%emt 0:02:35]} 15. Rfd1 {[%emt 0:07:10]} Nc5 {[%emt 0:11:33]} 16. Qc2 {[%emt 0:02:25]} Rac8 {[%emt 0:00:34]} 17. Qd2 {[%emt 0:05:42]} Rfe8 {[%emt 0:05:11]} 18. Qe1 {[%emt 0:09:05]} Ng6 {[%emt 0:10:51]} 19. b4 {[%emt 0:08:43]} Nd7 {[%emt 0:00:08]} 20. Na4 {[%emt 0:01:56]} Qb8 {[%emt 0:29:56]} 21. Qf2 {[%emt 0:18:22]} d5 {[%emt 0:08:12]} 22. Nc2 {[%emt 0:10:16]} Bd6 {[%emt 0:04:06]} 23. g3 {[%emt 0:02:29]} dxc4 {[%emt 0:03:19]} 24. Nxb6 {[%emt 0:02:11]} Nxb6 {[%emt 0:00:14]} 25. Bxb6 {[%emt 0:00:04]} Be5 {[%emt 0:04:59]} 26. Bd4 {[%emt 0:03:01]} h5 {[%emt 0:01:47]} 27. Bxe5 {[%emt 0:02:06]} Nxe5 {[%emt 0:00:24]} 28. Ne3 {[%emt 0:00:33]} c3 {[%emt 0:01:21]} 29. a3 {[%emt 0:03:57]} Qa8 {[%emt 0:01:53]} 30. Qe1 {[%emt 0:01:07]} f5 {[%emt 0:00:45]} 31. f4 {[%emt 0:02:49]} Ng4 {[%emt 0:02:19]} 32. Nxg4 {[%emt 0:00:27]} hxg4 {[%emt 0:00:10]} 33. e5 {[%emt 0:01:07]} Bh1 {[%emt 0:01:05]} 34. Bf1 {[%emt 0:00:27]} Bf3 {[%emt 0:00:34]} 35. Rd3 {[%emt 0:00:35]} c2 {[%emt 0:00:31]} 36. Qf2 {[%emt 0:00:46]} Be4 {[%emt 0:00:26]} 37. Rd2 {[%emt 0:00:34]} Red8 {[%emt 0:00:16]} 38. Re2 {[%emt 0:00:29]} Rd1 {[%emt 0:00:44]} 39. Re1 {[%emt 0:00:03]} Rxe1 {[%emt 0:00:32]} 40. Qxe1 {[%emt 0:00:00]} Qa7+ {[%emt 0:00:00]} 41. Qf2 {[%emt 0:01:10]} Qd7 {[%emt 0:13:03]} 42. Qe3 {[%emt 0:15:03]} Qd1 {[%emt 0:01:35]} 43. Qe1 {[%emt 0:08:30]} Rd8 {[%emt 0:02:31]} 44. Be2 {[%emt 0:01:10]} Qd4+ {[%emt 0:01:53]} 45. Qf2 {[%emt 0:03:58]} Qd2 {[%emt 0:00:24]} 46. Qe1 {[%emt 0:01:34]} Qe3+ {[%emt 0:00:13]} 47. Kf1 {[%emt 0:00:06]} Rd2 {[%emt 0:00:18]} 0-1

[Event "Polish Youth 1st League 2022"]
[Site "Lublin"]
[Date "2022.06.25"]
[Round "1.12"]
[White "Duda, Aleksandra"]
[Black "Lajdamik, Kinga"]
[Result "1-0"]
[ECO "A22"]
[WhiteElo "1453"]
[BlackElo "1308"]
[Annotator "NA RC"]
[PlyCount "93"]
[EventDate "2022.06.24"]
[EventType "team-tourn"]
[EventCountry "POL"]
[SourceTitle "playchess.com"]
[Source "ChessBase"]
[SourceQuality "1"]
[TimeControl "40/5400+30:1800+30"]

1. c4 {[%emt 0:00:04]} e5 {[%emt 0:00:05]} 2. Nc3 {[%emt 0:00:06]} Nf6 {[%emt 0:00:09]} 3. e3 {[%emt 0:00:20]} Be7 {[%emt 0:06:42]} 4. d4 {[%emt 0:01:13]} exd4 {[%emt 0:00:13]} 5. exd4 {[%emt 0:00:06]} O-O {[%emt 0:00:13]} 6. Nf3 {[%emt 0:01:42]} d5 {[%emt 0:09:37]} 7. Be3 {[%emt 0:04:42]} Re8 {[%emt 0:08:45]} 8. Bd3 {[%emt 0:05:32]} b6 {[%emt 0:06:19]} 9. O-O {[%emt 0:01:58]} dxc4 {[%emt 0:10:09]} 10. Bxc4 {[%emt 0:00:09]} Bd6 {[%emt 0:03:21]} 11. Qb3 {[%emt 0:05:52]} Be6 {[%emt 0:03:43]} 12. Bxe6 {[%emt 0:03:13]} Rxe6 {[%emt 0:00:40]} 13. h3 {[%emt 0:03:03]} h6 {[%emt 0:03:13]} 14. Rac1 {[%emt 0:02:54]} a6 {[%emt 0:06:11]} 15. Rfd1 {[%emt 0:03:46]} Nbd7 {[%emt 0:01:18]} 16. d5 {[%emt 0:02:16]} Re8 {[%emt 0:00:52]} 17. Nd4 {[%emt 0:00:55]} Nc5 {[%emt 0:02:31]} 18. Qc2 {[%emt 0:00:39]} Nb7 {[%emt 0:07:34]} 19. Nc6 {[%emt 0:02:42]} Qd7 {[%emt 0:00:49]} 20. Bd4 {[%emt 0:05:09]} Nh7 {[%emt 0:02:13]} 21. Ne2 {[%emt 0:11:35]} Ng5 {[%emt 0:03:14]} 22. Qd3 {[%emt 0:06:33]} Ne4 {[%emt 0:01:18]} 23. Nc3 {[%emt 0:07:44]} Nxc3 {[%emt 0:04:16]} 24. Qxc3 {[%emt 0:00:47]} Nc5 {[%emt 0:02:57]} 25. b4 {[%emt 0:07:44]} Ne4 {[%emt 0:00:45]} 26. Qb2 {[%emt 0:00:34]} Bf4 {[%emt 0:02:36]} 27. Be3 {[%emt 0:06:36]} Qd6 {[%emt 0:01:54]} 28. Bxf4 {[%emt 0:02:57]} Qxf4 {[%emt 0:00:02]} 29. Rd3 {[%emt 0:01:22]} Qg5 {[%emt 0:02:07]} 30. Rcd1 {[%emt 0:02:17]} Qf5 {[%emt 0:02:32]} 31. Rf3 {[%emt 0:01:21]} Qh5 {[%emt 0:01:19]} 32. Qd4 {[%emt 0:00:53]} Nd6 {[%emt 0:00:50]} 33. Rfd3 {[%emt 0:02:09]} Re4 {[%emt 0:00:13]} 34. Qb2 {[%emt 0:00:54]} Rae8 {[%emt 0:00:20]} 35. Qc1 {[%emt 0:02:00]} Re2 {[%emt 0:00:51]} 36. R3d2 {[%emt 0:00:29]} Qf5 {[%emt 0:02:21]} 37. Rf1 {[%emt 0:01:41]} Kh8 {[%emt 0:00:27]} 38. Nd4 {[%emt 0:01:07]} Qh5 {[%emt 0:02:47]} 39. Nxe2 {[%emt 0:00:33]} Rxe2 {[%emt 0:01:01]} 40. Rxe2 {[%emt 0:00:00]} Qxe2 {[%emt 0:00:00]} 41. Qxc7 {[%emt 0:00:41]} Qe5 {[%emt 0:01:01]} 42. Qxb6 {[%emt 0:00:47]} Qxd5 {[%emt 0:00:16]} 43. Qxa6 {[%emt 0:00:29]} Nf5 {[%emt 0:00:27]} 44. Qc8+ {[%emt 0:00:27]} Kh7 {[%emt 0:00:12]} 45. Qc5 {[%emt 0:00:33]} Qe4 {[%emt 0:00:24]} 46. b5 {[%emt 0:01:22]} Nh4 {[%emt 0:01:16]} 47. Qc6 1-0

[Event "Polish Youth 1st League 2022"]
[Site "Lublin"]
[Date "2022.06.25"]
[Round "1.13"]
[White "Jedraszek, Pawel"]
[Black "Klim, Filip"]
[Result "1/2-1/2"]
[ECO "D30"]
[WhiteElo "1933"]
[BlackElo "2015"]
[Annotator "NA RC"]
[PlyCount "98"]
[EventDate "2022.06.24"]
[EventType "team-tourn"]
[EventCountry "POL"]
[SourceTitle "playchess.com"]
[Source "ChessBase"]
[SourceQuality "1"]
[TimeControl "40/5400+30:1800+30"]

1. d4 {[%emt 0:00:03]} d5 {[%emt 0:00:07]} 2. c4 {[%emt 0:00:09]} c6 {[%emt 0:00:06]} 3. Nf3 {[%emt 0:00:12]} Nf6 {[%emt 0:00:10]} 4. e3 {[%emt 0:01:44]} e6 {[%emt 0:00:21]} 5. Nbd2 {[%emt 0:01:20]} Nbd7 {[%emt 0:00:27]} 6. Bd3 {[%emt 0:01:38]} Bd6 {[%emt 0:01:27]} 7. O-O {[%emt 0:02:06]} O-O {[%emt 0:01:28]} 8. e4 {[%emt 0:03:24]} e5 {[%emt 0:11:29]} 9. cxd5 {[%emt 0:00:16]} cxd5 {[%emt 0:00:53]} 10. exd5 {[%emt 0:00:18]} exd4 {[%emt 0:03:38]} 11. Ne4 {[%emt 0:03:33]} Ne5 {[%emt 0:20:18]} 12. Nxd4 {[%emt 0:30:57]} Nxe4 {[%emt 0:11:28]} 13. Bxe4 {[%emt 0:00:03]} Qh4 {[%emt 0:00:29]} 14. f4 {[%emt 0:01:41]} Bc5 {[%emt 0:05:44]} 15. g3 {[%emt 0:05:38]} Qf6 {[%emt 0:01:42]} (15... Qg4 $11) 16. fxe5 {[%emt 0:03:18]} Qxe5 {[%emt 0:00:20]} 17. Bxh7+ {[%emt 0:04:49]} Kh8 {[%emt 0:01:57]} 18. Rf4 {[%emt 0:01:16]} g5 {[%emt 0:04:56]} 19. Re4 {[%emt 0:01:43]} Qxd5 {[%emt 0:05:44]} 20. Qh5 {[%emt 0:05:42]} Bxd4+ {[%emt 0:00:31]} 21. Kg2 {[%emt 0:00:14]} Bg4 {[%emt 0:05:07]} 22. Qxg4 $17 {[%emt 0:03:29]} f5 {[%emt 0:00:31]} 23. Bxf5 {[%emt 0:00:36]} Rxf5 {[%emt 0:00:19]} 24. Bxg5 {[%emt 0:10:15]} Rxg5 {[%emt 0:01:48]} 25. Qf3 {[%emt 0:00:02]} Rf5 {[%emt 0:04:58]} 26. Rh4+ {[%emt 0:00:15]} Kg7 {[%emt 0:01:05]} 27. Qxd5 {[%emt 0:00:13]} Rxd5 {[%emt 0:00:06]} 28. Re1 {[%emt 0:07:35]} Bf6 {[%emt 0:01:59]} 29. Rg4+ {[%emt 0:00:09]} Kf7 {[%emt 0:00:24]} 30. Re2 {[%emt 0:00:25]} Rad8 {[%emt 0:01:40]} 31. Rc4 {[%emt 0:02:08]} Rd2 {[%emt 0:01:55]} 32. Rc2 {[%emt 0:00:09]} Rxe2+ {[%emt 0:00:56]} 33. Rxe2 {[%emt 0:00:02]} b5 {[%emt 0:00:10]} 34. Kf3 {[%emt 0:03:10]} a5 {[%emt 0:01:02]} 35. Rc2 {[%emt 0:00:45]} Rd5 {[%emt 0:04:27]} 36. Ke4 {[%emt 0:01:50]} Re5+ {[%emt 0:00:41]} 37. Kf4 {[%emt 0:00:31]} Kg6 {[%emt 0:00:14]} 38. h4 {[%emt 0:00:52]} Rd5 {[%emt 0:02:04]} 39. b3 {[%emt 0:03:49]} Rd4+ {[%emt 0:01:44]} 40. Kf3 {[%emt 0:00:00]} a4 {[%emt 0:00:00]} 41. Re2 {[%emt 0:06:38]} axb3 {[%emt 0:12:30]} 42. axb3 {[%emt 0:00:02]} Rd3+ {[%emt 0:00:28]} 43. Re3 {[%emt 0:01:09]} Rxe3+ {[%emt 0:01:10]} 44. Kxe3 {[%emt 0:00:01]} Kh5 {[%emt 0:00:05]} 45. Kf4 {[%emt 0:00:51]} b4 {[%emt 0:00:18]} 46. Ke4 {[%emt 0:03:46]} Kg4 {[%emt 0:05:09]} 47. Kd5 {[%emt 0:00:11]} Kf5 {[%emt 0:00:57]} 48. h5 {[%emt 0:02:20]} Kg4 {[%emt 0:01:36]} 49. Kc4 {[%emt 0:00:14]} Kxh5 {[%emt 0:00:28]} 1/2-1/2

[Event "Polish Youth 1st League 2022"]
[Site "Lublin"]
[Date "2022.06.25"]
[Round "1.14"]
[White "Bartodziej, Bartosz"]
[Black "Klaska, Szymon"]
[Result "1-0"]
[ECO "B84"]
[WhiteElo "1902"]
[BlackElo "1563"]
[Annotator "RC"]
[PlyCount "39"]
[EventDate "2022.06.24"]
[EventType "team-tourn"]
[EventCountry "POL"]
[SourceTitle "playchess.com"]
[Source "ChessBase"]
[SourceQuality "1"]
[TimeControl "40/5400+30:1800+30"]

1. e4 {[%emt 0:00:03]} c5 {[%emt 0:00:51]} 2. Nf3 {[%emt 0:00:08]} e6 {[%emt 0:00:43]} 3. d4 {[%emt 0:00:07]} cxd4 {[%emt 0:00:35]} 4. Nxd4 {[%emt 0:00:03]} Nf6 {[%emt 0:00:54]} 5. Nc3 {[%emt 0:00:06]} d6 {[%emt 0:00:56]} 6. Be2 {[%emt 0:00:12]} a6 {[%emt 0:00:53]} 7. O-O {[%emt 0:00:08]} Be7 {[%emt 0:00:50]} 8. f4 {[%emt 0:00:32]} Qc7 {[%emt 0:01:48]} 9. Kh1 {[%emt 0:01:09]} b5 {[%emt 0:00:37]} 10. e5 {[%emt 0:16:45]} dxe5 {[%emt 0:04:31]} 11. fxe5 {[%emt 0:00:02]} Qxe5 {[%emt 0:00:55]} 12. Bf4 {[%emt 0:00:30]} Qc5 {[%emt 0:00:55]} 13. Bf3 {[%emt 0:00:58]} Nd5 {[%emt 0:01:07]} 14. Nxd5 {[%emt 0:01:15]} exd5 {[%emt 0:06:23]} 15. Nb3 {[%emt 0:01:17]} Qa7 {[%emt 0:03:32]} 16. Qxd5 {[%emt 0:03:17]} Bb7 {[%emt 0:00:23]} 17. Qxb7 {[%emt 0:00:11]} Qxb7 {[%emt 0:00:03]} 18. Bxb7 {[%emt 0:00:03]} Ra7 {[%emt 0:00:06]} 19. Bd5 {[%emt 0:00:28]} O-O {[%emt 0:00:23]} 20. Bxb8 {[%emt 0:00:19]} 1-0

[Event "Polish Youth 1st League 2022"]
[Site "Lublin"]
[Date "2022.06.25"]
[Round "1.15"]
[White "Ugorek, Kacper"]
[Black "Nocek, Dominik"]
[Result "0-1"]
[ECO "A02"]
[WhiteElo "1696"]
[BlackElo "1657"]
[Annotator "NA RC"]
[PlyCount "126"]
[EventDate "2022.06.24"]
[EventType "team-tourn"]
[EventCountry "POL"]
[SourceTitle "playchess.com"]
[Source "ChessBase"]
[SourceQuality "1"]
[TimeControl "40/5400+30:1800+30"]

1. f4 {[%emt 0:00:03]} Nf6 {[%emt 0:00:33]} 2. g3 {[%emt 0:00:33]} g6 {[%emt 0:02:43]} 3. b3 {[%emt 0:00:29]} Bg7 {[%emt 0:00:45]} 4. Bb2 {[%emt 0:00:11]} O-O {[%emt 0:00:55]} 5. Bg2 {[%emt 0:00:28]} d5 {[%emt 0:03:34]} 6. Nf3 {[%emt 0:01:16]} c5 {[%emt 0:02:17]} 7. e3 {[%emt 0:02:58]} Nc6 {[%emt 0:01:52]} 8. O-O {[%emt 0:01:20]} Qc7 {[%emt 0:08:19]} 9. d3 {[%emt 0:09:34]} Rd8 {[%emt 0:06:06]} 10. Nbd2 {[%emt 0:10:00]} Ng4 {[%emt 0:13:57]} 11. Qc1 {[%emt 0:09:07]} Nxe3 {[%emt 0:01:38]} 12. Re1 {[%emt 0:00:27]} Nxg2 {[%emt 0:01:25]} 13. Kxg2 {[%emt 0:00:08]} d4 {[%emt 0:03:07]} 14. Ne4 {[%emt 0:06:31]} b6 {[%emt 0:01:12]} 15. Qd2 {[%emt 0:01:14]} Bb7 {[%emt 0:02:13]} 16. Qf2 {[%emt 0:04:44]} e5 {[%emt 0:05:01]} 17. Bc1 {[%emt 0:01:16]} Re8 {[%emt 0:08:16]} 18. fxe5 {[%emt 0:04:25]} Nxe5 {[%emt 0:00:36]} 19. Bf4 {[%emt 0:01:11]} Qc6 {[%emt 0:01:30]} 20. Bxe5 {[%emt 0:05:32]} Bxe5 {[%emt 0:00:18]} 21. Re2 {[%emt 0:03:14]} Bg7 {[%emt 0:04:52]} 22. Rae1 {[%emt 0:01:28]} Rad8 {[%emt 0:03:12]} 23. h3 {[%emt 0:07:39]} h6 {[%emt 0:02:22]} 24. Kh2 {[%emt 0:02:49]} f5 {[%emt 0:06:07]} 25. Ned2 {[%emt 0:00:07]} b5 {[%emt 0:07:11]} 26. Qf1 {[%emt 0:09:40]} Kf7 {[%emt 0:02:19]} 27. Qf2 {[%emt 0:07:27]} Rxe2 {[%emt 0:00:37]} 28. Qxe2 {[%emt 0:00:42]} Re8 {[%emt 0:00:16]} 29. Qxe8+ {[%emt 0:00:12]} Qxe8 {[%emt 0:00:02]} 30. Rxe8 {[%emt 0:00:01]} Kxe8 {[%emt 0:00:10]} 31. g4 {[%emt 0:00:39]} fxg4 {[%emt 0:06:48]} 32. hxg4 {[%emt 0:00:01]} g5 {[%emt 0:00:32]} 33. Kg3 {[%emt 0:02:41]} Ke7 {[%emt 0:00:39]} 34. Ne4 {[%emt 0:05:14]} Bxe4 {[%emt 0:00:37]} 35. dxe4 {[%emt 0:00:01]} Kf7 {[%emt 0:02:10]} 36. Ne1 {[%emt 0:03:42]} Kg6 {[%emt 0:01:08]} 37. Nf3 {[%emt 0:01:03]} h5 {[%emt 0:00:44]} 38. Kh3 {[%emt 0:00:39]} h4 {[%emt 0:01:45]} 39. e5 {[%emt 0:00:42]} Bf8 {[%emt 0:00:32]} 40. b4 {[%emt 0:00:00]} Be7 {[%emt 0:00:00]} 41. Kg2 {[%emt 0:06:51]} a6 {[%emt 0:05:02]} 42. Kf1 {[%emt 0:10:04]} c4 {[%emt 0:04:48]} 43. a3 {[%emt 0:02:33]} d3 {[%emt 0:01:51]} 44. cxd3 {[%emt 0:01:08]} cxd3 {[%emt 0:00:16]} 45. Ke1 {[%emt 0:01:35]} Kf7 {[%emt 0:06:54]} 46. Kd2 {[%emt 0:02:25]} Ke6 {[%emt 0:00:39]} 47. Kxd3 {[%emt 0:03:07]} Kd5 {[%emt 0:00:31]} 48. Ke3 {[%emt 0:05:26]} Bd8 {[%emt 0:08:36]} 49. Kd3 {[%emt 0:01:48]} Be7 {[%emt 0:05:32]} 50. Ke3 {[%emt 0:00:09]} Bd8 {[%emt 0:00:02]} 51. Kd3 {[%emt 0:00:05]} h3 {[%emt 0:01:29]} 52. Ke3 {[%emt 0:00:16]} Kc4 {[%emt 0:00:51]} 53. Kf2 {[%emt 0:00:18]} Kb3 {[%emt 0:00:08]} 54. Nd4+ {[%emt 0:00:57]} Kxa3 {[%emt 0:01:06]} 55. Nc6 {[%emt 0:00:10]} Bc7 {[%emt 0:00:10]} 56. Kg3 {[%emt 0:00:51]} Bxe5+ {[%emt 0:00:53]} 57. Nxe5 {[%emt 0:00:07]} Kxb4 {[%emt 0:00:06]} 58. Nf3 {[%emt 0:00:17]} a5 {[%emt 0:00:20]} 59. Nxg5 {[%emt 0:00:05]} a4 {[%emt 0:00:08]} 60. Nf3 {[%emt 0:00:32]} a3 {[%emt 0:01:25]} 61. Nd4 {[%emt 0:00:25]} a2 {[%emt 0:00:32]} 62. g5 {[%emt 0:01:37]} Kc3 {[%emt 0:00:31]} 63. Nxb5+ {[%emt 0:01:15]} Kb2 {[%emt 0:00:24]} 0-1

[Event "Polish Youth 1st League 2022"]
[Site "Lublin"]
[Date "2022.06.25"]
[Round "1.16"]
[White "Kowalski, Witold"]
[Black "Dobosiewicz, Dawid"]
[Result "0-1"]
[ECO "B47"]
[WhiteElo "1613"]
[BlackElo "1795"]
[Annotator "NA RC"]
[PlyCount "86"]
[EventDate "2022.06.24"]
[EventType "team-tourn"]
[EventCountry "POL"]
[SourceTitle "playchess.com"]
[Source "ChessBase"]
[SourceQuality "1"]
[TimeControl "40/5400+30:1800+30"]

1. e4 {[%emt 0:00:03]} c5 {[%emt 0:00:05]} 2. Nf3 {[%emt 0:00:06]} e6 {[%emt 0:00:09]} 3. d4 {[%emt 0:00:06]} cxd4 {[%emt 0:00:06]} 4. Nxd4 {[%emt 0:00:07]} Nc6 {[%emt 0:00:06]} 5. Nc3 {[%emt 0:00:08]} Qc7 {[%emt 0:00:09]} 6. Be2 {[%emt 0:00:14]} a6 {[%emt 0:00:10]} 7. O-O {[%emt 0:00:12]} Nf6 {[%emt 0:00:29]} 8. Be3 {[%emt 0:00:20]} Bb4 {[%emt 0:00:07]} 9. Na4 {[%emt 0:00:40]} Be7 {[%emt 0:00:11]} 10. Nxc6 {[%emt 0:01:20]} bxc6 {[%emt 0:00:10]} 11. Qd3 {[%emt 0:00:49]} c5 {[%emt 0:01:59]} 12. c4 {[%emt 0:00:54]} d6 {[%emt 0:01:31]} 13. f4 {[%emt 0:03:27]} Bb7 {[%emt 0:02:20]} 14. Nc3 {[%emt 0:00:55]} Rd8 {[%emt 0:01:25]} 15. Bf3 {[%emt 0:00:31]} O-O {[%emt 0:02:41]} 16. g4 {[%emt 0:10:16]} Nd7 {[%emt 0:05:54]} 17. g5 {[%emt 0:05:11]} Rfe8 {[%emt 0:02:49]} 18. Rad1 {[%emt 0:03:23]} Nb8 {[%emt 0:01:33]} 19. Bg2 {[%emt 0:32:32]} Nc6 {[%emt 0:06:29]} 20. Kh1 {[%emt 0:04:16]} Bf8 {[%emt 0:04:29]} 21. h4 {[%emt 0:03:52]} g6 {[%emt 0:01:08]} 22. h5 {[%emt 0:05:40]} Bg7 {[%emt 0:01:46]} 23. h6 {[%emt 0:01:44]} Bd4 {[%emt 0:03:20]} 24. a3 {[%emt 0:08:41]} d5 {[%emt 0:04:20]} 25. cxd5 {[%emt 0:07:03]} exd5 {[%emt 0:00:33]} 26. Bxd4 {[%emt 0:00:36]} Nxd4 {[%emt 0:09:01]} 27. exd5 {[%emt 0:01:02]} Kh8 {[%emt 0:01:41]} 28. b4 {[%emt 0:02:54]} Nf5 {[%emt 0:01:51]} 29. Be4 {[%emt 0:06:51]} cxb4 {[%emt 0:04:23]} 30. Bxf5 {[%emt 0:00:59]} Qxc3 {[%emt 0:00:51]} 31. axb4 {[%emt 0:00:32]} Bxd5+ {[%emt 0:04:28]} 32. Kg1 {[%emt 0:00:20]} Qxb4 {[%emt 0:01:43]} 33. Qxa6 {[%emt 0:00:37]} Qc5+ {[%emt 0:00:25]} 34. Rf2 {[%emt 0:00:23]} Qc3 {[%emt 0:01:30]} 35. Qd3 {[%emt 0:00:35]} Re1+ {[%emt 0:12:34]} 36. Rxe1 {[%emt 0:00:32]} Qxe1+ {[%emt 0:00:05]} 37. Rf1 {[%emt 0:00:23]} Qb4 {[%emt 0:00:15]} 38. Bg4 {[%emt 0:00:38]} Qc5+ {[%emt 0:01:06]} 39. Kh2 {[%emt 0:00:17]} Ra8 {[%emt 0:02:31]} 40. Rd1 {[%emt 0:00:00]} Qf2+ {[%emt 0:00:00]} 41. Kh3 {[%emt 0:03:08]} Bg2+ {[%emt 0:00:19]} 42. Kh2 {[%emt 0:00:16]} Bf1+ {[%emt 0:00:06]} 43. Kh1 {[%emt 0:00:13]} Qg2# {[%emt 0:00:02]} 0-1